fUSD/lending_fUSD_20251122
["ID","MTS","AMOUNT","RATE_DAILY","PERIOD"]
[394624473,1763794266143,-500.0,0.00017042,2]
[394624474,1763794266153,-500.0,0.00017042,2]
[394624475,1763794266164,-500.0,0.00017042,2]
[394624476,1763794266173,-500.0,0.00017042,2]
[394624477,1763794266183,-1151.58,0.00017042,2]
[394624478,1763794266194,-573.58902655,0.00017042,2]
[394624479,1763794266204,-500.0,0.00017042,2]
[394624480,1763794266213,-931.47,0.00017042,2]
[394624481,1763794266223,-575.57487622,0.00017042,2]
[394624482,1763794266232,-500.0,0.00017042,2]
[394624483,1763794266242,-960.5,0.00017042,2]
[394624484,1763794266251,-500.0,0.00017042,2]
[394624485,1763794266261,-807.31,0.00017042,2]
[394624486,1763794266270,-573.25278691,0.00017042,2]
[394624487,1763794266280,-709.5,0.00017042,2]
[394624488,1763794266290,-500.0,0.00017042,2]
[394624489,1763794266300,-500.0,0.00017042,2]
[394624490,1763794266309,-753.8,0.00017042,2]
[394624491,1763794266319,-500.0,0.00017042,2]
[394624492,1763794266328,-1016.24,0.00017042,2]
[394624493,1763794266338,-320.67334332,0.00017042,2]
[394624494,1763794266348,-500.0,0.00017042,2]
[394624495,1763794266357,-526.62124623,0.00017042,2]
[394624496,1763794266370,-500.0,0.00017042,2]
[394624497,1763794266382,-500.0,0.00017042,2]
[394624498,1763794266393,-1259.62,0.00017042,2]
[394624499,1763794266402,-542.66418439,0.00017042,2]
[394624500,1763794266413,-500.0,0.00017042,2]
[394624501,1763794266422,-775.47,0.00017042,2]
[394624502,1763794266431,-1122.35,0.00017042,2]
[394624503,1763794266441,-1814.47,0.00017042,2]
[394624504,1763794266450,-500.0,0.00017042,2]
[394624505,1763794266459,-500.0,0.00017042,2]
[394624506,1763794266468,-500.0,0.00017042,2]
[394624507,1763794266477,-500.0,0.00017042,2]
[394624508,1763794266486,-500.0,0.00017042,2]
[394624509,1763794266496,-500.0,0.00017042,2]
[394624510,1763794266505,-374.91546592,0.00017042,2]
[394624511,1763794266514,-299.55075216,0.00017042,2]
[394624512,1763794266524,-500.0,0.00017042,2]
[394624513,1763794266533,-500.0,0.00017042,2]
[394624514,1763794266542,-822.35,0.00017042,2]
[394624515,1763794266552,-500.0,0.00017042,2]
[394624516,1763794266562,-554.53,0.00017042,2]
[394624517,1763794266571,-500.0,0.00017042,2]
[394624518,1763794266581,-500.0,0.00017042,2]
[394624519,1763794266591,-500.0,0.00017042,2]
[394624520,1763794266600,-500.0,0.00017042,2]
[394624521,1763794266610,-500.0,0.00017042,2]
[394624522,1763794266620,-500.0,0.00017042,2]
[394624523,1763794266630,-500.0,0.00017042,2]
[394624524,1763794266639,-500.0,0.00017042,2]
[394624525,1763794266649,-500.0,0.00017042,2]
[394624526,1763794266661,-500.0,0.00017042,2]
[394624527,1763794266671,-500.0,0.00017042,2]
[394624528,1763794266681,-500.0,0.00017042,2]
[394624529,1763794266690,-500.0,0.00017042,2]
[394624530,1763794266700,-500.0,0.00017042,2]
[394624531,1763794266714,-500.0,0.00017042,2]
[394624532,1763794266724,-500.0,0.00017042,2]
[394624533,1763794266734,-264.02,0.00017042,2]
[394624534,1763794266743,-500.0,0.00017042,2]
[394624535,1763794266754,-500.0,0.00017042,2]
[394624536,1763794266763,-500.0,0.00017042,2]
[394624537,1763794266774,-500.0,0.00017042,2]
[394624538,1763794266787,-500.0,0.00017042,2]
[394624539,1763794266799,-500.0,0.00017042,2]
[394624540,1763794266809,-725.24,0.00017042,2]
[394624541,1763794266818,-251.36235403,0.00017042,2]
[394624542,1763794266828,-522.16714919,0.00017042,2]
[394624543,1763794266837,-500.0,0.00017042,2]
[394624544,1763794266847,-500.0,0.00017042,2]
[394624545,1763794266857,-500.0,0.00017042,2]
[394624546,1763794266866,-500.0,0.00017042,2]
[394624547,1763794266875,-5030.19,0.00017042,2]
[394624548,1763794266884,-500.0,0.00017042,2]
[394624549,1763794266894,-626.28635424,0.00017042,2]
[394624550,1763794266904,-500.0,0.00017042,2]
[394624551,1763794266914,-500.0,0.00017042,2]
[394624552,1763794266924,-1508.24,0.00017042,2]
[394624553,1763794266934,-890.72,0.00017042,2]
[394624554,1763794266944,-500.0,0.00017042,2]
[394624555,1763794266953,-158.89870989,0.00017042,2]
[394624556,1763794268240,-500.0,0.00016493,2]
[394624557,1763794268250,-683.86,0.00016494,2]
[394624558,1763794268260,-500.0,0.00016494,2]
[394624559,1763794268270,-683.86,0.00016768,2]
[394624560,1763794268279,-500.0,0.00016768,2]
[394624561,1763794268289,-341.10129011,0.00017042,2]
[394624562,1763794268299,-500.0,0.00017042,2]
[394624563,1763794268308,-206.16641718,0.00017042,2]
[394624564,1763794268320,-260.31402,0.00017042,2]
[394624565,1763794268355,-594.55956282,0.00017042,2]
[394624566,1763794268364,-521.13724328,0.00017042,2]
[394624567,1763794268374,-500.0,0.00017042,2]
[394624568,1763794268383,-583.21,0.00017042,2]
[394624569,1763794268392,-1501.92,0.00017042,2]
[394624570,1763794268402,-953.38,0.00017042,2]
[394624571,1763794268411,-500.0,0.00017042,2]
[394624572,1763794268422,-500.0,0.00017042,2]
[394624573,1763794268431,-623.86,0.00017042,2]
[394624574,1763794268440,-500.0,0.00017042,2]
[394624575,1763794268449,-500.0,0.00017042,2]
[394624576,1763794268459,-605.17635582,0.00017042,2]
[394624577,1763794268471,-618.85364418,0.00017042,2]
[394624578,1763794268481,-500.0,0.00017042,2]
[394624579,1763794268490,-775.05,0.00017042,2]
[394624580,1763794268499,-1147.32,0.00017042,2]
[394624581,1763794268508,-410.23672705,0.00017042,2]
[394624582,1763794268517,-535.68172919,0.00017042,2]
[394624583,1763794268543,-104.13827081,0.00017042,2]
[394624584,1763794268553,-500.0,0.00017042,2]
[394624585,1763794268562,-91.28274463,0.00017042,2]
[394624586,1763794269857,-273.2942,0.00016493,2]
[394624587,1763794998579,1759.0,0.00016,5]
[394624588,1763795055813,774.45,0.00013699,2]
[394624592,1763795412727,150.0,0.0001484,2]
[394624598,1763795432034,-1000.0,0.00015144,2]
[394624599,1763795432044,-250.0,0.00015169,2]
[394624600,1763795432054,-193.0,0.00015193,2]
[394624601,1763795432065,-263.27950744,0.00015241,2]
[394624602,1763795432076,-1200.0,0.00015336,2]
[394624603,1763795432089,-300.0,0.00015336,2]
[394624604,1763795432100,-546.79205917,0.00015336,2]
[394624605,1763795432113,-653.20794083,0.00015336,2]
[394624606,1763795432123,-150.0,0.00015337,2]
[394624607,1763795432133,-150.0,0.00015337,2]
[394624608,1763795432143,-150.0,0.00015337,2]
[394624609,1763795432155,-150.0,0.00015337,2]
[394624610,1763795432164,-151.69825373,0.00015337,2]
[394624611,1763795432173,-150.0,0.00015337,2]
[394624612,1763795432182,-150.0,0.00015337,2]
[394624613,1763795432192,-150.0,0.00015337,2]
[394624614,1763795432201,-150.0,0.00015337,2]
[394624615,1763795432210,-150.0,0.00015337,2]
[394624616,1763795432219,-150.0,0.00015337,2]
[394624617,1763795432229,-150.0,0.00015337,2]
[394624618,1763795432238,-638.18227965,0.00015443,2]
[394624619,1763795432249,-961.81772035,0.00015443,2]
[394624620,1763795432259,-166.67,0.00015467,2]
[394624621,1763795432268,-150.0,0.0001555,2]
[394624622,1763795432277,-150.0,0.0001555,2]
[394624623,1763795432286,-150.0,0.0001558,2]
[394624624,1763795432295,-150.0,0.0001558,2]
[394624625,1763795432305,-1642.64,0.00015587,2]
[394624626,1763795432314,-500.0,0.00015587,2]
[394624627,1763795432323,-500.0,0.00015587,2]
[394624628,1763795432332,-150.0,0.00015621,2]
[394624630,1763795432341,-999.0,0.00015626,3]
[394624632,1763795432350,-359.26414965,0.00015658,2]
[394624634,1763795432366,-54.18829464,0.00015658,2]
[394624636,1763795432375,-151.0,0.00015747,2]
[394624639,1763795432384,-151.0,0.00015747,2]
[394624641,1763795432393,-300.0,0.00015748,2]
[394624643,1763795432403,-500.0,0.00015749,2]
[394624645,1763795432412,-493.81170536,0.00015749,2]
[394624651,1763795432435,-6.18829464,0.00015749,2]
[394624653,1763795432444,-500.0,0.00015749,2]
[394624655,1763795432454,-500.0,0.00015749,2]
[394624657,1763795432463,-500.0,0.00015749,2]
[394624659,1763795432472,-617.06101547,0.00015749,2]
[394624661,1763795432481,-211.11797055,0.00015749,2]
[394624663,1763795432491,-541.65746098,0.00015749,2]
[394624665,1763795432500,-153.27018198,0.00015749,2]
[394624667,1763795432509,-31524.95494188,0.0001575,2]
[394624670,1763795432523,-4683.58356105,0.0001575,2]
[394624672,1763795432540,-1500.0,0.0001575,2]
[394624689,1763795438272,-306277.30199707,0.0001575,2]
[394624690,1763795438281,-528.721,0.00015758,2]
[394624691,1763795438291,-28210.57,0.00015759,2]
[394624692,1763795438301,-150.0,0.00015763,2]
[394624694,1763795438311,-150.0,0.00015763,2]
[394624696,1763795438320,-150.0,0.00015763,2]
[394624698,1763795438330,-150.0,0.00015763,2]
[394624700,1763795438340,-150.0,0.00015824,2]
[394624702,1763795438349,-150.0,0.00015824,2]
[394624704,1763795438359,-8429.02,0.0001585,2]
[394624706,1763795438369,-578.20924308,0.00015881,2]
[394624708,1763795438378,-346.6648598,0.000159,2]
[394624710,1763795438388,-150.0,0.00015905,2]
[394624712,1763795438398,-150.0,0.00015905,2]
[394624714,1763795438408,-150.0,0.00015976,2]
[394624716,1763795438417,-150.0,0.00015976,2]
[394624718,1763795438427,-413.45244426,0.00015978,2]
[394624720,1763795438437,-150.0,0.00016067,2]
[394624722,1763795438446,-150.0,0.00016067,2]
[394624724,1763795438455,-9999.99,0.00016099,2]
[394624726,1763795438464,-150.99,0.00016099,2]
[394624728,1763795438474,-150.0,0.00016189,2]
[394624730,1763795438483,-150.0,0.00016189,2]
[394624732,1763795438494,-150.0,0.00016189,2]
[394624734,1763795438504,-150.0,0.00016189,2]
[394624736,1763795438514,-150.0,0.00016189,2]
[394624738,1763795438523,-150.0,0.00016189,2]
[394624741,1763795438532,-300.0,0.00016194,2]
[394624743,1763795438542,-169.6,0.00016247,2]
[394624745,1763795438552,-671.2091,0.00016294,2]
[394624747,1763795438561,-1000.0,0.00016294,2]
[394624749,1763795438570,-413.45244426,0.00016299,2]
[394624751,1763795438579,-150.0,0.00016311,2]
[394624753,1763795438589,-150.0,0.00016311,2]
[394624755,1763795438598,-1931.33294922,0.00016338,2]
[394624757,1763795438608,-500.0,0.00016373,2]
[394624759,1763795438617,-151.0,0.00016381,2]
[394624761,1763795438627,-1057.92687524,0.00016383,5]
[394624763,1763795438636,-721.12765535,0.00016384,2]
[394624765,1763795438646,-500.0,0.00016384,2]
[394624767,1763795438655,-500.0,0.00016384,2]
[394624769,1763795438665,-3000.0,0.00016384,2]
[394624771,1763795438678,-475.70981304,0.00016384,2]
[394624773,1763795438689,-3000.0,0.00016384,2]
[394624776,1763795438699,-2012.8167965,0.00016384,2]
[394624778,1763795438709,-5000.0,0.00016384,2]
[394624780,1763795438718,-5000.0,0.00016384,2]
[394624782,1763795438727,-5000.0,0.00016384,2]
[394624784,1763795438737,-5000.0,0.00016384,2]
[394624786,1763795438746,-5000.0,0.00016384,2]
[394624788,1763795438756,-5000.0,0.00016384,2]
[394624790,1763795438765,-5000.0,0.00016384,2]
[394624792,1763795438774,-5000.0,0.00016384,2]
[394624794,1763795438784,-5000.0,0.00016384,2]
[394624796,1763795438793,-5000.0,0.00016384,2]
[394624798,1763795438803,-5000.0,0.00016384,2]
[394624800,1763795438813,-167.84247087,0.00016393,2]
[394624802,1763795438823,-500.0,0.00016393,2]
[394624804,1763795438832,-500.0,0.00016393,2]
[394624806,1763795438842,-500.0,0.00016393,2]
[394624808,1763795438851,-504.62507341,0.00016393,2]
[394624810,1763795438861,-406.4620943,0.00016393,2]
[394624812,1763795438872,-171.78131342,0.00016393,2]
[394624814,1763795438882,-500.0,0.00016393,2]
[394624816,1763795438891,-500.0,0.00016393,2]
[394624818,1763795438901,-502.96056691,0.00016393,2]
[394624820,1763795438911,-500.0,0.00016393,2]
[394624822,1763795438920,-500.0,0.00016393,2]
[394624824,1763795438930,-184.34,0.00016393,2]
[394624826,1763795438940,-1000.0,0.00016394,2]
[394624828,1763795438950,-10311.11715592,0.00016394,2]
[394624830,1763795438959,-1169.1697,0.00016394,2]
[394624832,1763795438968,-150.0,0.00016402,2]
[394624834,1763795438978,-150.0,0.00016402,2]
[394624836,1763795438987,-151.0,0.00016435,2]
[394624838,1763795438997,-151.0,0.00016435,2]
[394624840,1763795439007,-2363.0,0.00016438,2]
[394624842,1763795439017,-500.0,0.00016438,2]
[394624844,1763795439026,-536.42069231,0.00016438,2]
[394624846,1763795439035,-500.0,0.00016438,2]
[394624848,1763795439045,-500.0,0.00016438,2]
[394624851,1763795439059,-500.0,0.00016438,2]
[394624853,1763795439068,-500.0,0.00016438,2]
[394624855,1763795439078,-500.0,0.00016438,2]
[394624857,1763795439094,-642.60742201,0.00016438,2]
[394624858,1763795439104,-500.0,0.00016438,2]
[394624861,1763795439114,-500.0,0.00016438,2]
[394624863,1763795439124,-515.40026021,0.00016438,2]
[394624865,1763795439133,-500.0,0.00016438,2]
[394624867,1763795439143,-500.0,0.00016438,2]
[394624869,1763795439153,-500.0,0.00016438,2]
[394624871,1763795439164,-500.0,0.00016438,2]
[394624873,1763795439175,-500.0,0.00016438,2]
[394624875,1763795439185,-500.0,0.00016438,2]
[394624877,1763795439194,-500.0,0.00016438,2]
[394624879,1763795439203,-500.0,0.00016438,2]
[394624881,1763795439213,-500.0,0.00016438,2]
[394624883,1763795439223,-500.0,0.00016438,2]
[394624885,1763795439232,-500.0,0.00016438,2]
[394624887,1763795439241,-500.0,0.00016438,2]
[394624889,1763795439251,-500.0,0.00016438,2]
[394624891,1763795439260,-929.65,0.00016438,2]
[394624893,1763795439272,-353.82593894,0.00016438,2]
[394624895,1763795439281,-500.0,0.00016438,2]
[394624897,1763795439290,-500.0,0.00016438,2]
[394624899,1763795439300,-500.0,0.00016438,2]
[394624901,1763795439309,-238.65901977,0.00016438,2]
[394624902,1763795439318,-506.66363431,0.00016438,2]
[394624903,1763795439328,-249.63034726,0.00016438,2]
[394624904,1763795439337,-500.0,0.00016438,2]
[394624905,1763795439346,-500.0,0.00016438,2]
[394624906,1763795439355,-450.64674512,0.00016438,2]
[394624907,1763795439365,-500.0,0.00016438,2]
[394624908,1763795439375,-500.0,0.00016438,2]
[394624909,1763795439384,-511.06228057,0.00016438,2]
[394624910,1763795439394,-1055.61,0.00016438,2]
[394624911,1763795439407,-500.0,0.00016438,2]
[394624912,1763795439417,-500.0,0.00016438,2]
[394624913,1763795439426,-949.05,0.00016438,2]
[394624914,1763795439436,-652.47,0.00016438,2]
[394624915,1763795439446,-853.84,0.00016438,2]
[394624916,1763795439459,-500.0,0.00016438,2]
[394624917,1763795439468,-500.0,0.00016438,2]
[394624918,1763795439477,-500.0,0.00016438,2]
[394624919,1763795439486,-502.66872564,0.00016438,2]
[394624920,1763795439495,-500.0,0.00016438,2]
[394624921,1763795439505,-931.55,0.00016438,2]
[394624922,1763795439515,-500.0,0.00016438,2]
[394624923,1763795439524,-617.41661375,0.00016438,2]
[394624924,1763795439534,-235.37780049,0.00016438,2]
[394624925,1763795439543,-1047.79,0.00016438,2]
[394624926,1763795439552,-690.99,0.00016438,2]
[394624927,1763795439562,-500.0,0.00016438,2]
[394624928,1763795439571,-500.0,0.00016438,2]
[394624929,1763795439580,-500.0,0.00016438,2]
[394624930,1763795439589,-500.0,0.00016438,2]
[394624931,1763795439599,-500.0,0.00016438,2]
[394624932,1763795439609,-621.83,0.00016438,2]
[394624933,1763795439618,-500.0,0.00016438,2]
[394624934,1763795439628,-500.0,0.00016438,2]
[394624935,1763795439638,-317.33784502,0.00016438,2]
[394624936,1763795439647,-500.0,0.00016438,2]
[394624937,1763795439656,-500.0,0.00016438,2]
[394624938,1763795439665,-880.46,0.00016438,2]
[394624939,1763795439675,-420.07219624,0.00016438,2]
[394624940,1763795439684,-500.0,0.00016438,2]
[394624941,1763795439693,-500.0,0.00016438,2]
[394624942,1763795439703,-500.0,0.00016438,2]
[394624943,1763795439714,-500.0,0.00016438,2]
[394624944,1763795439723,-500.0,0.00016438,2]
[394624945,1763795439732,-509.78395243,0.00016438,2]
[394624946,1763795439742,-500.0,0.00016438,2]
[394624947,1763795439751,-500.0,0.00016438,2]
[394624948,1763795439760,-299.55075216,0.00016438,2]
[394624949,1763795439769,-500.0,0.00016438,2]
[394624950,1763795439778,-500.0,0.00016438,2]
[394624951,1763795439787,-500.0,0.00016438,2]
[394624952,1763795439796,-500.0,0.00016438,2]
[394624953,1763795439805,-500.0,0.00016438,2]
[394624954,1763795439814,-500.0,0.00016438,2]
[394624955,1763795439824,-513.64757694,0.00016438,2]
[394624956,1763795439833,-500.0,0.00016438,2]
[394624957,1763795439846,-500.0,0.00016438,2]
[394624958,1763795439855,-500.0,0.00016438,2]
[394624959,1763795439864,-500.0,0.00016438,2]
[394624960,1763795439873,-500.0,0.00016438,2]
[394624961,1763795439882,-500.0,0.00016438,2]
[394624962,1763795439892,-500.0,0.00016438,2]
[394624963,1763795439901,-504.32889048,0.00016438,2]
[394624964,1763795439910,-922.69,0.00016438,2]
[394624965,1763795439920,-526.62124623,0.00016438,2]
[394624966,1763795439930,-500.0,0.00016438,2]
[394624967,1763795439939,-572.11696802,0.00016438,2]
[394624968,1763795439948,-500.0,0.00016438,2]
[394624969,1763795439958,-500.0,0.00016438,2]
[394624970,1763795439967,-1154.65,0.00016438,2]
[394624971,1763795439976,-500.0,0.00016438,2]
[394624972,1763795439985,-500.0,0.00016438,2]
[394624973,1763795439995,-500.0,0.00016438,2]
[394624974,1763795440004,-502.38614117,0.00016438,2]
[394624975,1763795440013,-500.0,0.00016438,2]
[394624976,1763795440023,-500.0,0.00016438,2]
[394624977,1763795440032,-500.0,0.00016438,2]
[394624978,1763795440041,-500.0,0.00016438,2]
[394624979,1763795440050,-500.0,0.00016438,2]
[394624980,1763795440059,-626.28635424,0.00016438,2]
[394624981,1763795440068,-928.41,0.00016438,2]
[394624982,1763795440078,-500.0,0.00016438,2]
[394624983,1763795440092,-500.0,0.00016438,2]
[394624984,1763795440101,-500.0,0.00016438,2]
[394624985,1763795440112,-753.82,0.00016438,2]
[394624986,1763795440447,-500.0,0.00016438,2]
[394624987,1763795440457,-500.0,0.00016438,2]
[394624989,1763795440467,-500.0,0.00016438,2]
[394624991,1763795440476,-500.0,0.00016438,2]
[394624993,1763795440486,-409.03718702,0.00016438,2]
[394624995,1763795440495,-500.0,0.00016438,2]
[394624997,1763795440504,-264.02,0.00016438,2]
[394624999,1763795440514,-500.0,0.00016438,2]
[394625000,1763795440524,-500.0,0.00016438,2]
[394625001,1763795440534,-500.0,0.00016438,2]
[394625002,1763795440543,-500.0,0.00016438,2]
[394625003,1763795440553,-500.0,0.00016438,2]
[394625004,1763795440562,-508.72408279,0.00016438,2]
[394625005,1763795440572,-678.17,0.00016438,2]
[394625006,1763795440581,-500.0,0.00016438,2]
[394625007,1763795440590,-500.0,0.00016438,2]
[394625008,1763795440600,-468.3428474,0.00016438,2]
[394625009,1763795440609,-500.0,0.00016438,2]
[394625010,1763795440617,-500.0,0.00016438,2]
[394625011,1763795440627,-571.38,0.00016438,2]
[394625012,1763795440636,-400.0,0.00016438,2]
[394625013,1763795440645,-500.0,0.00016438,2]
[394625014,1763795440654,-599.76521683,0.00016438,2]
[394625015,1763795440664,-1167.28,0.00016438,2]
[394625016,1763795440674,-488.71560557,0.00016438,2]
[394625017,1763795440684,-500.0,0.00016438,2]
[394625018,1763795440694,-816.49,0.00016438,2]
[394625019,1763795440703,-609.46,0.00016438,2]
[394625020,1763795440714,-500.0,0.00016438,2]
[394625021,1763795440723,-1508.97,0.00016438,2]
[394625022,1763795440732,-500.0,0.00016438,2]
[394625023,1763795440741,-990.34,0.00016438,2]
[394625024,1763795440750,-545.88,0.00016438,2]
[394625025,1763795440759,-409.39271526,0.00016438,2]
[394625026,1763795440769,-500.0,0.00016438,2]
[394625027,1763795440778,-500.0,0.00016438,2]
[394625028,1763795440786,-500.0,0.00016438,2]
[394625029,1763795440795,-543.02,0.00016438,2]
[394625030,1763795440804,-646.95,0.00016438,2]
[394625031,1763795440813,-500.0,0.00016438,2]
[394625032,1763795440822,-500.0,0.00016438,2]
[394625033,1763795440831,-510.7449198,0.00016438,2]
[394625034,1763795440840,-401.48634413,0.00016438,2]
[394625035,1763795440850,-500.0,0.00016438,2]
[394625036,1763795440859,-398.95729348,0.00016438,2]
[394625037,1763795440868,-500.0,0.00016438,2]
[394625038,1763795440877,-400.0,0.00016438,2]
[394625039,1763795440897,-434.66683302,0.00016438,2]
[394625040,1763795440907,-669.39,0.00016438,2]
[394625041,1763795440917,-500.0,0.00016438,2]
[394625042,1763795440927,-500.0,0.00016438,2]
[394625043,1763795440937,-500.0,0.00016438,2]
[394625044,1763795440947,-413.89772212,0.00016438,2]
[394625045,1763795440956,-796.52,0.00016438,2]
[394625046,1763795440966,-549.37,0.00016438,2]
[394625047,1763795440975,-991.62,0.00016438,2]
[394625048,1763795440985,-500.0,0.00016438,2]
[394625049,1763795440994,-500.0,0.00016438,2]
[394625050,1763795441003,-633.17,0.00016438,2]
[394625051,1763795441013,-402.867326,0.00016438,2]
[394625052,1763795441022,-500.0,0.00016438,2]
[394625053,1763795441031,-509.88051663,0.00016438,2]
[394625054,1763795441041,-500.0,0.00016438,2]
[394625055,1763795441050,-396.347417,0.00016438,2]
[394625056,1763795441059,-500.0,0.00016438,2]
[394625057,1763795441068,-500.0,0.00016438,2]
[394625058,1763795441077,-500.0,0.00016438,2]
[394625059,1763795441089,-751.7,0.00016438,2]
[394625060,1763795441098,-500.0,0.00016438,2]
[394625061,1763795441108,-500.0,0.00016438,2]
[394625062,1763795441117,-500.0,0.00016438,2]
[394625063,1763795441127,-500.0,0.00016438,2]
[394625064,1763795441137,-746.32,0.00016438,2]
[394625065,1763795441146,-1159.175371,0.00016438,2]
[394625066,1763795441156,-1285.18,0.00016438,2]
[394625067,1763795441167,-500.0,0.00016438,2]
[394625068,1763795441177,-500.0,0.00016438,2]
[394625069,1763795441186,-500.0,0.00016438,2]
[394625070,1763795441196,-663.91,0.00016438,2]
[394625071,1763795441206,-652.22,0.00016438,2]
[394625072,1763795441215,-438.95844357,0.00016438,2]
[394625073,1763795441225,-1913.84,0.00016438,2]
[394625074,1763795441234,-500.0,0.00016438,2]
[394625075,1763795441244,-500.0,0.00016438,2]
[394625076,1763795441253,-500.0,0.00016438,2]
[394625077,1763795441263,-724.604542,0.00016438,2]
[394625078,1763795441272,-820.04,0.00016438,2]
[394625079,1763795441282,-779.07,0.00016438,2]
[394625080,1763795441292,-500.0,0.00016438,2]
[394625081,1763795441301,-7358.505106,0.00016438,2]
[394625082,1763795441312,-710.26,0.00016438,2]
[394625083,1763795441322,-531.87926096,0.00016438,2]
[394625084,1763795441331,-234.70239157,0.00016438,2]
[394625085,1763795441341,-500.0,0.00016438,2]
[394625086,1763795441350,-522.29848616,0.00016438,2]
[394625087,1763795441360,-196.539978,0.00016438,2]
[394625088,1763795441369,-972.58,0.00016438,2]
[394625089,1763795441380,-500.0,0.00016438,2]
[394625090,1763795441390,-500.0,0.00016438,2]
[394625091,1763795441401,-232.356419,0.00016438,2]
[394625092,1763795441411,-500.0,0.00016438,2]
[394625093,1763795441421,-500.0,0.00016438,2]
[394625094,1763795441431,-500.0,0.00016438,2]
[394625095,1763795441442,-1150.96,0.00016438,2]
[394625096,1763795441451,-500.0,0.00016438,2]
[394625097,1763795441461,-360.00549649,0.00016438,2]
[394625098,1763795441471,-500.0,0.00016438,2]
[394625099,1763795441480,-500.0,0.00016438,2]
[394625100,1763795441490,-500.0,0.00016438,2]
[394625101,1763795441499,-500.0,0.00016438,2]
[394625102,1763795441509,-498.73997389,0.00016438,2]
[394625103,1763795441519,-500.0,0.00016438,2]
[394625104,1763795441529,-500.0,0.00016438,2]
[394625105,1763795441539,-500.0,0.00016438,2]
[394625106,1763795441549,-500.0,0.00016438,2]
[394625107,1763795441558,-500.0,0.00016438,2]
[394625108,1763795441567,-593.02305247,0.00016438,2]
[394625109,1763795441577,-835.25,0.00016438,2]
[394625110,1763795441587,-500.0,0.00016438,2]
[394625111,1763795441597,-414.41014957,0.00016438,2]
[394625112,1763795441607,-783.43,0.00016438,2]
[394625113,1763795441617,-500.0,0.00016438,2]
[394625114,1763795441628,-500.0,0.00016438,2]
[394625115,1763795441637,-500.0,0.00016438,2]
[394625116,1763795441647,-555.01,0.00016438,2]
[394625117,1763795441657,-500.0,0.00016438,2]
[394625118,1763795441667,-500.0,0.00016438,2]
[394625119,1763795441676,-500.0,0.00016438,2]
[394625120,1763795441686,-500.0,0.00016438,2]
[394625121,1763795441696,-500.0,0.00016438,2]
[394625122,1763795441706,-567.49,0.00016438,2]
[394625123,1763795441717,-500.0,0.00016438,2]
[394625124,1763795441727,-500.0,0.00016438,2]
[394625125,1763795441738,-500.0,0.00016438,2]
[394625126,1763795441748,-614.19319784,0.00016438,2]
[394625127,1763795441757,-500.0,0.00016438,2]
[394625128,1763795441768,-500.0,0.00016438,2]
[394625129,1763795441777,-500.0,0.00016438,2]
[394625130,1763795441787,-500.0,0.00016438,2]
[394625131,1763795441796,-501.93575653,0.00016438,2]
[394625132,1763795441805,-862.12,0.00016438,2]
[394625133,1763795441815,-712.13,0.00016438,2]